[Event "*** Titled Tuesday Blitz"]
[Site "Chess.com"]
[Date "2020.12.29"]
[Round "11"]
[White "Deepweb2020"]
[Black "esteban062000"]
[Result "1-0"]
[WhiteElo "2338"]
[BlackElo "2191"]
[TimeControl "180+1"]
[EndTime "12:02:20 PST"]
[Termination "Deepweb2020 won by resignation"]

1. d4 {[%clk 0:03:00.9]} 1... Nf6 {[%clk 0:02:58.3]} 2. Bf4 {[%clk 0:03:00.9]}
2... e6 {[%clk 0:02:58.1]} 3. e3 {[%clk 0:03:00.9]} 3... c5 {[%clk 0:02:57.9]}
4. c3 {[%clk 0:03:01.1]} 4... d5 {[%clk 0:02:58]} 5. Nd2 {[%clk 0:03:01.1]} 5...
Bd6 {[%clk 0:02:58.1]} 6. Bg3 {[%clk 0:03:01.5]} 6... O-O {[%clk 0:02:58]} 7.
Bd3 {[%clk 0:03:01.6]} 7... Nc6 {[%clk 0:02:57.4]} 8. Ngf3 {[%clk 0:03:02]} 8...
b6 {[%clk 0:02:53.3]} 9. Ne5 {[%clk 0:03:01.1]} 9... Bb7 {[%clk 0:02:51.9]} 10.
f4 {[%clk 0:03:00.7]} 10... Nd7 {[%clk 0:02:50.3]} 11. Qf3 {[%clk 0:02:48.1]}
11... cxd4 {[%clk 0:02:48.2]} 12. exd4 {[%clk 0:02:48]} 12... f6 {[%clk
0:02:47.8]} 13. Qh5 {[%clk 0:02:43.6]} 13... f5 {[%clk 0:02:45]} 14. Bh4 {[%clk
0:02:37.3]} 14... Nf6 {[%clk 0:02:34.3]} 15. Qf3 {[%clk 0:02:31.9]} 15... Be7
{[%clk 0:02:31.2]} 16. Bxf6 {[%clk 0:02:27.3]} 16... Bxf6 {[%clk 0:02:23.2]} 17.
Qh3 {[%clk 0:02:21.6]} 17... Bxe5 {[%clk 0:02:20.6]} 18. fxe5 {[%clk 0:02:21.4]}
18... Qg5 {[%clk 0:02:16.6]} 19. O-O-O {[%clk 0:02:18.1]} 19... Qg4 {[%clk
0:02:12.9]} 20. Qe3 {[%clk 0:02:14.7]} 20... f4 {[%clk 0:02:01.3]} 21. Qf3
{[%clk 0:02:12.8]} 21... Qxf3 {[%clk 0:01:57.5]} 22. Nxf3 {[%clk 0:02:09.7]}
22... Rac8 {[%clk 0:01:57.8]} 23. Ng5 {[%clk 0:02:09.8]} 23... Nxd4 {[%clk
0:01:48.1]} 24. Bxh7+ {[%clk 0:02:09.2]} 24... Kh8 {[%clk 0:01:46.5]} 25. Rxd4
{[%clk 0:02:10.1]} 25... f3 {[%clk 0:01:35.4]} 26. Rh4 {[%clk 0:02:09.1]} 26...
fxg2 {[%clk 0:01:28.2]} 27. Bf5+ {[%clk 0:02:02.9]} 27... Kg8 {[%clk 0:01:27.5]}
28. Bxe6+ {[%clk 0:02:03.8]} 28... Rf7 {[%clk 0:01:27.4]} 29. Rg1 {[%clk
0:01:56.9]} 1-0

[Event "*** Titled Tuesday Blitz"]
[Site "Chess.com"]
[Date "2020.12.29"]
[Round "11"]
[White "OparinGrigoriy"]
[Black "Grandelicious"]
[Result "1-0"]
[WhiteElo "2981"]
[BlackElo "2877"]
[TimeControl "180+1"]
[EndTime "12:02:57 PST"]
[Termination "OparinGrigoriy won by resignation"]

1. d4 {[%clk 0:03:00.9]} 1... d5 {[%clk 0:03:00.1]} 2. c4 {[%clk 0:03:01.2]}
2... c6 {[%clk 0:03:00.8]} 3. Nf3 {[%clk 0:03:01.8]} 3... Nf6 {[%clk 0:03:01]}
4. g3 {[%clk 0:03:02.5]} 4... e6 {[%clk 0:02:52.3]} 5. Bg2 {[%clk 0:03:01.9]}
5... Be7 {[%clk 0:02:53]} 6. O-O {[%clk 0:03:02]} 6... O-O {[%clk 0:02:53.5]} 7.
b3 {[%clk 0:03:02.2]} 7... b6 {[%clk 0:02:53.3]} 8. Bb2 {[%clk 0:03:02.2]} 8...
Bb7 {[%clk 0:02:53.7]} 9. Qc2 {[%clk 0:03:02.2]} 9... Nbd7 {[%clk 0:02:49.1]}
10. Nc3 {[%clk 0:03:02.7]} 10... Rc8 {[%clk 0:02:35.3]} 11. Rfd1 {[%clk
0:03:02.9]} 11... Ba6 {[%clk 0:02:34.4]} 12. e4 {[%clk 0:03:01.2]} 12... dxc4
{[%clk 0:02:34.2]} 13. Nd2 {[%clk 0:02:57.9]} 13... b5 {[%clk 0:02:30.8]} 14.
bxc4 {[%clk 0:02:53.6]} 14... bxc4 {[%clk 0:02:31.7]} 15. Bf1 {[%clk 0:02:48.1]}
15... Nb6 {[%clk 0:02:05.8]} 16. a4 {[%clk 0:02:46.4]} 16... c5 {[%clk
0:01:47.4]} 17. a5 {[%clk 0:02:41.9]} 17... Nbd7 {[%clk 0:01:44.5]} 18. d5
{[%clk 0:02:40.8]} 18... exd5 {[%clk 0:01:45.4]} 19. Nxd5 {[%clk 0:02:41.7]}
19... Nxd5 {[%clk 0:01:44.4]} 20. exd5 {[%clk 0:02:42.6]} 20... Bf6 {[%clk
0:01:40]} 21. Bxc4 {[%clk 0:02:37.9]} 21... Bxb2 {[%clk 0:01:18.2]} 22. Qxb2
{[%clk 0:02:37.7]} 22... Rb8 {[%clk 0:01:13.2]} 23. Qc3 {[%clk 0:02:34]} 23...
Bxc4 {[%clk 0:01:01.9]} 24. Nxc4 {[%clk 0:02:34.9]} 24... Rb4 {[%clk 0:01:00]}
25. d6 {[%clk 0:02:32.1]} 25... Re8 {[%clk 0:00:55.3]} 26. Re1 {[%clk
0:02:31.2]} 26... h6 {[%clk 0:00:45.1]} 27. Rxe8+ {[%clk 0:02:26.1]} 27... Qxe8
{[%clk 0:00:46]} 28. Re1 {[%clk 0:02:26.5]} 28... Qa8 {[%clk 0:00:46.5]} 29. Qd3
{[%clk 0:02:24.7]} 29... Qc6 {[%clk 0:00:40.1]} 30. Re8+ {[%clk 0:02:24.1]}
30... Nf8 {[%clk 0:00:39.3]} 31. d7 {[%clk 0:02:24.5]} 1-0

[Event "*** Titled Tuesday Blitz"]
[Site "Chess.com"]
[Date "2020.12.29"]
[Round "11"]
[White "beto-betun"]
[Black "northridgehawk"]
[Result "1-0"]
[WhiteElo "2200"]
[BlackElo "2312"]
[TimeControl "180+1"]
[EndTime "12:03:07 PST"]
[Termination "beto-betun won by checkmate"]

1. d4 {[%clk 0:02:15.2]} 1... f5 {[%clk 0:02:57.1]} 2. Nf3 {[%clk 0:02:15.6]}
2... Nf6 {[%clk 0:02:52.9]} 3. g3 {[%clk 0:02:16.3]} 3... g6 {[%clk 0:02:51.5]}
4. Bg2 {[%clk 0:02:17]} 4... Bg7 {[%clk 0:02:52.1]} 5. O-O {[%clk 0:02:17.7]}
5... O-O {[%clk 0:02:52.9]} 6. c4 {[%clk 0:02:18.3]} 6... c6 {[%clk 0:02:53.3]}
7. b3 {[%clk 0:02:18.4]} 7... d6 {[%clk 0:02:53.3]} 8. Bb2 {[%clk 0:02:18.9]}
8... Qc7 {[%clk 0:02:47.8]} 9. Nbd2 {[%clk 0:02:18.8]} 9... Na6 {[%clk
0:02:44.9]} 10. a3 {[%clk 0:02:16.8]} 10... Re8 {[%clk 0:02:37.9]} 11. Qc2
{[%clk 0:02:16.8]} 11... Nd7 {[%clk 0:02:29.2]} 12. e4 {[%clk 0:02:12.5]} 12...
fxe4 {[%clk 0:02:28.5]} 13. Nxe4 {[%clk 0:02:13.4]} 13... e5 {[%clk 0:02:27.2]}
14. Neg5 {[%clk 0:02:00.3]} 14... exd4 {[%clk 0:02:09.5]} 15. Nxd4 {[%clk
0:01:59.5]} 15... Ne5 {[%clk 0:02:05.8]} 16. Rfe1 {[%clk 0:01:50.3]} 16... Nc5
{[%clk 0:02:03]} 17. Rad1 {[%clk 0:01:47.1]} 17... a5 {[%clk 0:02:01]} 18. f4
{[%clk 0:01:41.4]} 18... h6 {[%clk 0:01:56.8]} 19. fxe5 {[%clk 0:01:22.7]} 19...
dxe5 {[%clk 0:01:51.4]} 20. Qxg6 {[%clk 0:01:15]} 20... hxg5 {[%clk 0:01:50.2]}
21. Qxe8+ {[%clk 0:01:14.1]} 21... Kh7 {[%clk 0:01:50.1]} 22. Nf3 {[%clk
0:00:52.5]} 22... Nd7 {[%clk 0:01:37.2]} 23. Nxg5+ {[%clk 0:00:51.8]} 23... Kh6
{[%clk 0:01:37.4]} 24. Nf7+ {[%clk 0:00:47.2]} 24... Kh7 {[%clk 0:01:35.5]} 25.
Be4# {[%clk 0:00:45.9]} 1-0

[Event "*** Titled Tuesday Blitz"]
[Site "Chess.com"]
[Date "2020.12.29"]
[Round "11"]
[White "ShapkinAnatoliy"]
[Black "Natalya_Buksa"]
[Result "1-0"]
[WhiteElo "2700"]
[BlackElo "2544"]
[TimeControl "180+1"]
[EndTime "12:03:20 PST"]
[Termination "ShapkinAnatoliy won by resignation"]

1. d4 {[%clk 0:03:00.9]} 1... d5 {[%clk 0:02:55.6]} 2. c4 {[%clk 0:03:01]} 2...
e6 {[%clk 0:02:55.2]} 3. Nf3 {[%clk 0:03:00.2]} 3... Nf6 {[%clk 0:02:55.4]} 4.
g3 {[%clk 0:03:00.7]} 4... Be7 {[%clk 0:02:55.8]} 5. Bg2 {[%clk 0:03:01.3]} 5...
O-O {[%clk 0:02:56.7]} 6. O-O {[%clk 0:03:01.7]} 6... dxc4 {[%clk 0:02:57.4]} 7.
Qc2 {[%clk 0:03:02]} 7... c6 {[%clk 0:02:58.1]} 8. a4 {[%clk 0:02:44.8]} 8... c5
{[%clk 0:02:40]} 9. dxc5 {[%clk 0:02:38.7]} 9... Nbd7 {[%clk 0:02:38]} 10. c6
{[%clk 0:02:36.1]} 10... bxc6 {[%clk 0:02:38.7]} 11. Nbd2 {[%clk 0:02:30.9]}
11... Rb8 {[%clk 0:02:31.3]} 12. Nxc4 {[%clk 0:02:30.8]} 12... Nc5 {[%clk
0:02:30.1]} 13. Bf4 {[%clk 0:02:26.1]} 13... Rb4 {[%clk 0:02:27.5]} 14. Rfd1
{[%clk 0:02:22.7]} 14... Qe8 {[%clk 0:02:19.4]} 15. Nd6 {[%clk 0:02:08.6]} 15...
Qd8 {[%clk 0:02:17.9]} 16. Qxc5 {[%clk 0:01:58.4]} 16... Rxb2 {[%clk 0:01:58.1]}
17. Qxc6 {[%clk 0:01:53]} 17... Bd7 {[%clk 0:01:57]} 18. Qa6 {[%clk 0:01:40.7]}
18... Nd5 {[%clk 0:01:48.1]} 19. Nb5 {[%clk 0:01:29.2]} 19... Bc5 {[%clk
0:01:30.8]} 20. e3 {[%clk 0:01:21.6]} 20... Bc8 {[%clk 0:01:11.9]} 21. Qc6
{[%clk 0:01:19]} 21... Bd7 {[%clk 0:01:12]} 22. Qxc5 {[%clk 0:01:18.5]} 22...
Bxb5 {[%clk 0:01:06.3]} 23. axb5 {[%clk 0:01:16.6]} 23... Qe8 {[%clk 0:01:04.5]}
24. Bd6 {[%clk 0:01:13.6]} 24... Rxb5 {[%clk 0:01:04.2]} 25. Qa3 {[%clk
0:01:10.5]} 1-0

[Event "*** Titled Tuesday Blitz"]
[Site "Chess.com"]
[Date "2020.12.29"]
[Round "11"]
[White "Chamal_Gedgafov"]
[Black "bazar-wokzal"]
[Result "1-0"]
[WhiteElo "2280"]
[BlackElo "2555"]
[TimeControl "180+1"]
[EndTime "12:04:06 PST"]
[Termination "Chamal_Gedgafov won by resignation"]

1. e4 {[%clk 0:02:43.9]} 1... Nc6 {[%clk 0:02:59.2]} 2. d4 {[%clk 0:02:42.8]}
2... d5 {[%clk 0:02:59.1]} 3. Nc3 {[%clk 0:02:40.7]} 3... Nf6 {[%clk 0:02:58]}
4. e5 {[%clk 0:02:36.6]} 4... Nd7 {[%clk 0:02:57.7]} 5. Nxd5 {[%clk 0:02:34.3]}
5... Ndb8 {[%clk 0:02:57.5]} 6. Nf4 {[%clk 0:02:21.4]} 6... Qxd4 {[%clk
0:02:55.8]} 7. Qxd4 {[%clk 0:02:07.6]} 7... Nxd4 {[%clk 0:02:55.5]} 8. Bd3
{[%clk 0:02:07.7]} 8... Bf5 {[%clk 0:02:46.1]} 9. Bxf5 {[%clk 0:02:05.7]} 9...
Nxf5 {[%clk 0:02:45.7]} 10. e6 {[%clk 0:02:05.6]} 10... Nc6 {[%clk 0:02:37.8]}
11. Be3 {[%clk 0:01:56.7]} 11... Nxe3 {[%clk 0:02:29.5]} 12. fxe3 {[%clk
0:01:55.8]} 12... g5 {[%clk 0:02:28.8]} 13. exf7+ {[%clk 0:01:49.8]} 13... Kxf7
{[%clk 0:02:29]} 14. Nd3 {[%clk 0:01:50.3]} 14... g4 {[%clk 0:02:22.6]} 15. Ne2
{[%clk 0:01:48.7]} 15... Bh6 {[%clk 0:02:21.8]} 16. Nef4 {[%clk 0:01:42.6]}
16... e5 {[%clk 0:02:17.3]} 17. Nd5 {[%clk 0:01:40.2]} 17... Rad8 {[%clk
0:01:46]} 18. Rf1+ {[%clk 0:01:38.9]} 18... Kg6 {[%clk 0:01:44.2]} 19. e4 {[%clk
0:01:18.2]} 19... Rhe8 {[%clk 0:01:29.8]} 20. c3 {[%clk 0:01:16.7]} 20... Bg5
{[%clk 0:01:23.9]} 21. Ke2 {[%clk 0:01:15.2]} 21... Rc8 {[%clk 0:01:03.6]} 22.
Rf5 {[%clk 0:01:13.6]} 22... Re6 {[%clk 0:00:55.6]} 23. Raf1 {[%clk 0:01:10.9]}
23... Ne7 {[%clk 0:00:48]} 24. Nxe5+ {[%clk 0:01:07.8]} 24... Kh5 {[%clk
0:00:38]} 25. Nf4+ {[%clk 0:01:01.3]} 1-0

[Event "*** Titled Tuesday Blitz"]
[Site "Chess.com"]
[Date "2020.12.29"]
[Round "11"]
[White "IrishMonkey"]
[Black "maxip32"]
[Result "1-0"]
[WhiteElo "2645"]
[BlackElo "2509"]
[TimeControl "180+1"]
[EndTime "12:04:13 PST"]
[Termination "IrishMonkey won by resignation"]

1. e4 {[%clk 0:03:00.9]} 1... c5 {[%clk 0:02:59.1]} 2. Nf3 {[%clk 0:02:57.3]}
2... d6 {[%clk 0:02:59.3]} 3. d4 {[%clk 0:02:56.5]} 3... cxd4 {[%clk 0:03:00.2]}
4. Nxd4 {[%clk 0:02:55.5]} 4... Nf6 {[%clk 0:03:00.3]} 5. Nc3 {[%clk 0:02:54.7]}
5... a6 {[%clk 0:02:58.7]} 6. Be3 {[%clk 0:02:55.4]} 6... e5 {[%clk 0:02:58.6]}
7. Nb3 {[%clk 0:02:53.2]} 7... Be6 {[%clk 0:02:57.1]} 8. f3 {[%clk 0:02:51.3]}
8... Be7 {[%clk 0:02:57]} 9. Qd2 {[%clk 0:02:49.4]} 9... O-O {[%clk 0:02:57]}
10. O-O-O {[%clk 0:02:48.7]} 10... a5 {[%clk 0:02:57.4]} 11. Qe1 {[%clk
0:02:46.5]} 11... a4 {[%clk 0:02:54.1]} 12. Nc5 {[%clk 0:02:43.1]} 12... a3
{[%clk 0:02:53.6]} 13. b3 {[%clk 0:02:40.8]} 13... Qc8 {[%clk 0:02:46.5]} 14.
Nxe6 {[%clk 0:02:33.7]} 14... fxe6 {[%clk 0:02:47.4]} 15. Bb5 {[%clk 0:02:26.7]}
15... Nbd7 {[%clk 0:02:32.2]} 16. h4 {[%clk 0:02:19.9]} 16... Kh8 {[%clk
0:02:13.1]} 17. g4 {[%clk 0:02:16]} 17... Qc7 {[%clk 0:02:10.8]} 18. h5 {[%clk
0:02:12.5]} 18... Rfc8 {[%clk 0:02:07.4]} 19. Bc4 {[%clk 0:02:08.1]} 19... d5
{[%clk 0:01:31]} 20. exd5 {[%clk 0:02:07.5]} 20... exd5 {[%clk 0:01:30.8]} 21.
Rxd5 {[%clk 0:02:07.5]} 21... Bb4 {[%clk 0:01:24.3]} 22. h6 {[%clk 0:02:02.3]}
22... Bxc3 {[%clk 0:01:17.6]} 23. hxg7+ {[%clk 0:01:57.1]} 23... Kxg7 {[%clk
0:01:18.5]} 24. Rxd7+ {[%clk 0:01:55.2]} 24... Nxd7 {[%clk 0:00:56.4]} 25. Rxh7+
{[%clk 0:01:46.5]} 25... Kf8 {[%clk 0:00:18.8]} 26. Bh6+ {[%clk 0:01:32.1]}
26... Ke8 {[%clk 0:00:18.8]} 27. Qh4 {[%clk 0:01:32.8]} 27... Bb2+ {[%clk
0:00:14.4]} 28. Kb1 {[%clk 0:01:30.2]} 28... Nf8 {[%clk 0:00:10.6]} 29. Qh5+
{[%clk 0:01:21.1]} 29... Kd8 {[%clk 0:00:10.4]} 30. Qg5+ {[%clk 0:01:18.7]} 1-0

[Event "*** Titled Tuesday Blitz"]
[Site "Chess.com"]
[Date "2020.12.29"]
[Round "11"]
[White "Matols"]
[Black "HeadShotRomanTest"]
[Result "1-0"]
[WhiteElo "2264"]
[BlackElo "2168"]
[TimeControl "180+1"]
[EndTime "12:04:19 PST"]
[Termination "Matols won by checkmate"]

1. d4 {[%clk 0:03:00.9]} 1... Nf6 {[%clk 0:03:00]} 2. c4 {[%clk 0:03:00.9]} 2...
g6 {[%clk 0:03:00.3]} 3. g3 {[%clk 0:03:01]} 3... Bg7 {[%clk 0:03:00.8]} 4. Bg2
{[%clk 0:03:01.2]} 4... O-O {[%clk 0:03:01.4]} 5. Nc3 {[%clk 0:03:01.7]} 5... d6
{[%clk 0:03:02]} 6. Nf3 {[%clk 0:03:01.9]} 6... Nc6 {[%clk 0:03:02.6]} 7. O-O
{[%clk 0:03:01.6]} 7... a6 {[%clk 0:03:03]} 8. d5 {[%clk 0:02:59.6]} 8... Na5
{[%clk 0:03:02.5]} 9. Qd3 {[%clk 0:02:58.4]} 9... c5 {[%clk 0:03:02.3]} 10. e4
{[%clk 0:02:54.4]} 10... Rb8 {[%clk 0:03:00.1]} 11. Bd2 {[%clk 0:02:50.9]} 11...
Bd7 {[%clk 0:02:49.5]} 12. b3 {[%clk 0:02:44.3]} 12... b5 {[%clk 0:02:48.3]} 13.
Rab1 {[%clk 0:02:41]} 13... Qc7 {[%clk 0:02:45.5]} 14. Rfe1 {[%clk 0:02:38.6]}
14... Ng4 {[%clk 0:02:36.2]} 15. h3 {[%clk 0:02:31.9]} 15... Ne5 {[%clk
0:02:36.3]} 16. Nxe5 {[%clk 0:02:31.8]} 16... Bxe5 {[%clk 0:02:37.2]} 17. f4
{[%clk 0:02:31.8]} 17... Bg7 {[%clk 0:02:34.6]} 18. Kh2 {[%clk 0:02:28.4]} 18...
bxc4 {[%clk 0:02:27.1]} 19. bxc4 {[%clk 0:02:27.3]} 19... Rxb1 {[%clk
0:01:55.4]} 20. Rxb1 {[%clk 0:02:25.4]} 20... Rb8 {[%clk 0:01:55.2]} 21. e5
{[%clk 0:02:01.6]} 21... dxe5 {[%clk 0:01:47.6]} 22. Rxb8+ {[%clk 0:01:54.2]}
22... Qxb8 {[%clk 0:01:48.5]} 23. Ne4 {[%clk 0:01:52.1]} 23... Nb7 {[%clk
0:01:38.9]} 24. Qb3 {[%clk 0:01:47.1]} 24... Qc7 {[%clk 0:01:34.6]} 25. Be3
{[%clk 0:01:27.3]} 25... Bf5 {[%clk 0:01:21]} 26. Qa3 {[%clk 0:01:13.4]} 26...
Bxe4 {[%clk 0:01:11.4]} 27. Bxe4 {[%clk 0:01:12.9]} 27... Qb6 {[%clk 0:01:11.3]}
28. fxe5 {[%clk 0:01:00.3]} 28... Bxe5 {[%clk 0:01:09.6]} 29. Qa4 {[%clk
0:00:57.8]} 29... Qb2+ {[%clk 0:01:08.2]} 30. Bg2 {[%clk 0:00:57.5]} 30... Nd6
{[%clk 0:00:46.3]} 31. Qxa6 {[%clk 0:00:55.7]} 31... Qe2 {[%clk 0:00:45.1]} 32.
Bh6 {[%clk 0:00:53.5]} 32... f5 {[%clk 0:00:38.5]} 33. Qa8+ {[%clk 0:00:52]}
33... Kf7 {[%clk 0:00:37.9]} 34. Qf8# {[%clk 0:00:51.6]} 1-0

[Event "*** Titled Tuesday Blitz"]
[Site "Chess.com"]
[Date "2020.12.29"]
[Round "11"]
[White "Alexander_Zubov"]
[Black "PSvidler"]
[Result "1-0"]
[WhiteElo "2933"]
[BlackElo "2836"]
[TimeControl "180+1"]
[EndTime "12:04:23 PST"]
[Termination "Alexander_Zubov won by resignation"]

1. d4 {[%clk 0:03:00.9]} 1... Nf6 {[%clk 0:02:58.9]} 2. Nf3 {[%clk 0:03:00.7]}
2... g6 {[%clk 0:02:59.1]} 3. Nbd2 {[%clk 0:02:59.5]} 3... Bg7 {[%clk
0:02:50.1]} 4. e4 {[%clk 0:02:59]} 4... O-O {[%clk 0:02:49.7]} 5. Bd3 {[%clk
0:02:58.5]} 5... d6 {[%clk 0:02:49.8]} 6. O-O {[%clk 0:02:58.6]} 6... c5 {[%clk
0:02:49.8]} 7. c3 {[%clk 0:02:58.6]} 7... cxd4 {[%clk 0:02:49.7]} 8. cxd4 {[%clk
0:02:58.4]} 8... Nc6 {[%clk 0:02:49.4]} 9. Re1 {[%clk 0:02:57.6]} 9... Bd7
{[%clk 0:02:45]} 10. a3 {[%clk 0:02:54.6]} 10... Rc8 {[%clk 0:02:44.4]} 11. d5
{[%clk 0:02:38.3]} 11... Nb8 {[%clk 0:02:32]} 12. Nf1 {[%clk 0:02:26.7]} 12...
Na6 {[%clk 0:02:29.4]} 13. Ng3 {[%clk 0:02:23.7]} 13... Nc5 {[%clk 0:02:28.5]}
14. Bc2 {[%clk 0:02:22.7]} 14... a5 {[%clk 0:02:28.3]} 15. Be3 {[%clk
0:02:15.9]} 15... Ng4 {[%clk 0:02:21.1]} 16. Bd4 {[%clk 0:02:15.6]} 16... Bxd4
{[%clk 0:02:13.1]} 17. Qxd4 {[%clk 0:02:00.5]} 17... a4 {[%clk 0:02:10]} 18. h3
{[%clk 0:01:57.5]} 18... Nf6 {[%clk 0:02:08.5]} 19. Rad1 {[%clk 0:01:43.3]}
19... Qb6 {[%clk 0:02:02.9]} 20. e5 {[%clk 0:01:40.5]} 20... dxe5 {[%clk
0:02:02.6]} 21. Nxe5 {[%clk 0:01:36.4]} 21... Rfd8 {[%clk 0:01:33.4]} 22. Nc4
{[%clk 0:01:15.8]} 22... Qa6 {[%clk 0:01:33.2]} 23. Rxe7 {[%clk 0:01:01.9]}
23... Bb5 {[%clk 0:01:23.6]} 24. d6 {[%clk 0:00:56.9]} 24... Ncd7 {[%clk
0:01:06.3]} 25. Ne3 {[%clk 0:00:48.7]} 25... Rc5 {[%clk 0:01:01]} 26. Ne4 {[%clk
0:00:41.9]} 26... Nxe4 {[%clk 0:01:00.4]} 27. Bxe4 {[%clk 0:00:42.3]} 27... Be2
{[%clk 0:00:47.8]} 28. Rxd7 {[%clk 0:00:35.7]} 28... Rxd7 {[%clk 0:00:47.3]} 29.
Qxc5 {[%clk 0:00:36]} 29... Bxd1 {[%clk 0:00:45.9]} 30. Qc8+ {[%clk 0:00:35.7]}
1-0

[Event "*** Titled Tuesday Blitz"]
[Site "Chess.com"]
[Date "2020.12.29"]
[Round "11"]
[White "AlleyOoper"]
[Black "SHIVACalypso"]
[Result "1-0"]
[WhiteElo "2621"]
[BlackElo "2476"]
[TimeControl "180+1"]
[EndTime "12:04:36 PST"]
[Termination "AlleyOoper won by resignation"]

1. d4 {[%clk 0:02:13.9]} 1... e6 {[%clk 0:02:57.9]} 2. Nf3 {[%clk 0:02:14.3]}
2... Nf6 {[%clk 0:02:57.8]} 3. c4 {[%clk 0:02:14.8]} 3... d5 {[%clk 0:02:57.1]}
4. Nc3 {[%clk 0:02:12.6]} 4... Bb4 {[%clk 0:02:56.1]} 5. a3 {[%clk 0:02:13.1]}
5... Bxc3+ {[%clk 0:02:52.6]} 6. bxc3 {[%clk 0:02:14]} 6... O-O {[%clk 0:02:50]}
7. cxd5 {[%clk 0:02:13.2]} 7... exd5 {[%clk 0:02:50.9]} 8. e3 {[%clk 0:02:10.9]}
8... h6 {[%clk 0:02:49.6]} 9. c4 {[%clk 0:02:11.2]} 9... Be6 {[%clk 0:02:48.1]}
10. cxd5 {[%clk 0:02:08.8]} 10... Bxd5 {[%clk 0:02:47.6]} 11. Be2 {[%clk
0:02:09]} 11... b6 {[%clk 0:02:41.9]} 12. O-O {[%clk 0:02:07.3]} 12... Nbd7
{[%clk 0:02:42.1]} 13. a4 {[%clk 0:02:07.7]} 13... c5 {[%clk 0:02:42.1]} 14. Ba3
{[%clk 0:02:03.2]} 14... Re8 {[%clk 0:02:41.3]} 15. a5 {[%clk 0:02:02.9]} 15...
Rb8 {[%clk 0:02:30.4]} 16. axb6 {[%clk 0:01:54.3]} 16... axb6 {[%clk 0:02:31.3]}
17. Rc1 {[%clk 0:01:53.9]} 17... Ne4 {[%clk 0:02:24.5]} 18. Bb5 {[%clk
0:01:46.5]} 18... Ndf6 {[%clk 0:02:21.2]} 19. Bxe8 {[%clk 0:01:44.3]} 19... Qxe8
{[%clk 0:02:15.5]} 20. dxc5 {[%clk 0:01:44.5]} 20... Nxf2 {[%clk 0:01:35.9]} 21.
Rxf2 {[%clk 0:01:38.7]} 21... Qxe3 {[%clk 0:01:36.2]} 22. Bb2 {[%clk 0:01:26.1]}
22... Ng4 {[%clk 0:01:34.9]} 23. Bd4 {[%clk 0:01:26.1]} 23... Nxf2 {[%clk
0:01:35]} 24. Bxe3 {[%clk 0:01:25.8]} 24... Nxd1 {[%clk 0:01:34.9]} 25. Rxd1
{[%clk 0:01:26.1]} 25... Bxf3 {[%clk 0:01:32.2]} 26. gxf3 {[%clk 0:01:23.7]}
26... bxc5 {[%clk 0:01:32.4]} 27. Bxc5 {[%clk 0:01:23.4]} 27... Rc8 {[%clk
0:01:31]} 28. Be3 {[%clk 0:01:20.9]} 28... Rc3 {[%clk 0:01:25.4]} 29. Kf2 {[%clk
0:01:20.1]} 29... Rc2+ {[%clk 0:01:22.2]} 30. Rd2 {[%clk 0:01:20.3]} 30... Rc4
{[%clk 0:01:22.2]} 31. Rd8+ {[%clk 0:01:19.2]} 31... Kh7 {[%clk 0:01:22.1]} 32.
Rd7 {[%clk 0:01:19.7]} 32... Kg6 {[%clk 0:01:20.8]} 33. Rd6+ {[%clk 0:01:19.8]}
33... Kh7 {[%clk 0:01:20.4]} 34. Rd4 {[%clk 0:01:18.9]} 34... Rc2+ {[%clk
0:01:18.8]} 35. Kg3 {[%clk 0:01:19.3]} 35... Rc6 {[%clk 0:01:18.4]} 36. h4
{[%clk 0:01:18.6]} 36... Rg6+ {[%clk 0:01:17.5]} 37. Rg4 {[%clk 0:01:18.2]}
37... Re6 {[%clk 0:01:14.7]} 38. Bd4 {[%clk 0:01:18.3]} 38... g6 {[%clk
0:01:14]} 39. Re4 {[%clk 0:01:13.8]} 39... Rd6 {[%clk 0:01:11.6]} 40. Be5 {[%clk
0:01:11.7]} 40... Rd5 {[%clk 0:01:09.2]} 41. Bf6 {[%clk 0:01:11.8]} 41... g5
{[%clk 0:01:06.5]} 42. h5 {[%clk 0:01:07]} 42... Rf5 {[%clk 0:01:04.6]} 43. Bd4
{[%clk 0:01:00.7]} 43... Rd5 {[%clk 0:01:03.5]} 44. Kf2 {[%clk 0:01:00.1]} 44...
Rd7 {[%clk 0:00:55]} 45. Ke3 {[%clk 0:00:59.7]} 1-0

[Event "*** Titled Tuesday Blitz"]
[Site "Chess.com"]
[Date "2020.12.29"]
[Round "11"]
[White "grunbergmihai"]
[Black "HrvojeZagreb"]
[Result "0-1"]
[WhiteElo "2435"]
[BlackElo "2275"]
[TimeControl "180+1"]
[EndTime "12:04:36 PST"]
[Termination "HrvojeZagreb won by resignation"]

1. d4 {[%clk 0:03:00.9]} 1... e6 {[%clk 0:02:59.8]} 2. Nf3 {[%clk 0:03:01.8]}
2... f5 {[%clk 0:02:59.5]} 3. c4 {[%clk 0:02:56.1]} 3... Nf6 {[%clk 0:02:59.1]}
4. Nc3 {[%clk 0:02:53.8]} 4... Bb4 {[%clk 0:02:59.1]} 5. Qc2 {[%clk 0:02:53.5]}
5... O-O {[%clk 0:02:57.4]} 6. a3 {[%clk 0:02:52.6]} 6... Bxc3+ {[%clk
0:02:57.1]} 7. Qxc3 {[%clk 0:02:53.5]} 7... d6 {[%clk 0:02:57]} 8. Bf4 {[%clk
0:02:52.3]} 8... Qe7 {[%clk 0:02:46.8]} 9. e3 {[%clk 0:02:50.5]} 9... b6 {[%clk
0:02:44]} 10. Nd2 {[%clk 0:02:45.6]} 10... Bb7 {[%clk 0:02:41]} 11. f3 {[%clk
0:02:45.1]} 11... Nbd7 {[%clk 0:02:40.1]} 12. Bg3 {[%clk 0:02:42.1]} 12... e5
{[%clk 0:02:37.7]} 13. dxe5 {[%clk 0:02:40]} 13... dxe5 {[%clk 0:02:37.2]} 14.
O-O-O {[%clk 0:02:37.7]} 14... a5 {[%clk 0:02:31.8]} 15. Kb1 {[%clk 0:02:35.7]}
15... Rad8 {[%clk 0:01:54.3]} 16. Bd3 {[%clk 0:02:35]} 16... g6 {[%clk
0:01:53.1]} 17. Bc2 {[%clk 0:02:33.7]} 17... Rfe8 {[%clk 0:01:34.9]} 18. Bh4
{[%clk 0:02:25.1]} 18... Kg7 {[%clk 0:01:29.9]} 19. Rhg1 {[%clk 0:02:24.5]}
19... h6 {[%clk 0:01:24.2]} 20. g4 {[%clk 0:02:21]} 20... fxg4 {[%clk
0:01:15.7]} 21. fxg4 {[%clk 0:02:20.6]} 21... g5 {[%clk 0:01:15.6]} 22. Bg3
{[%clk 0:02:12.3]} 22... Nc5 {[%clk 0:01:13.5]} 23. h4 {[%clk 0:02:07.7]} 23...
Nfe4 {[%clk 0:00:59.2]} 24. Nxe4 {[%clk 0:01:59.3]} 24... Rxd1+ {[%clk
0:00:58.6]} 25. Rxd1 {[%clk 0:01:56.5]} 25... Nxe4 {[%clk 0:00:58.3]} 26. Qe1
{[%clk 0:01:35.6]} 26... Nxg3 {[%clk 0:00:42]} 27. Qxg3 {[%clk 0:01:34.9]} 27...
gxh4 {[%clk 0:00:42.3]} 28. Qh2 {[%clk 0:01:32]} 28... Bc6 {[%clk 0:00:36]} 29.
Bf5 {[%clk 0:01:28.5]} 29... Qg5 {[%clk 0:00:31.6]} 30. Rd3 {[%clk 0:01:16.8]}
30... h5 {[%clk 0:00:28.4]} 31. Qh3 {[%clk 0:01:12.2]} 31... hxg4 {[%clk
0:00:26.8]} 32. Qf1 {[%clk 0:01:07]} 32... Rf8 {[%clk 0:00:22.6]} 33. e4 {[%clk
0:01:05.1]} 33... Bxe4 {[%clk 0:00:20.5]} 0-1